bitfinex/quotes_ETHUSD_20260306
["timestamp","ask_amount","ask_price","bid_price","bid_amount"]
[1772755693735,0.48581386,2075.8,2075.3,1.68648513]
[1772755694102,0.48581386,2075.8,2075.4,0.04818348]
[1772755695630,0.48581386,2075.7,2075.4,1.25275162]
[1772755696734,0.48581386,2075.7,2075.4,1.73349164]
[1772755697314,0.48581386,2075.7,2075.4,1.25275162]
[1772755698627,0.48581386,2075.7,2075.3,1.68644904]
[1772755698955,0.48581386,2075.6,2075.3,1.20570902]
[1772755699150,0.48581386,2075.6,2075.3,0.0011]
[1772755700562,0.48581386,2075.5,2075.3,0.0011]
[1772755705058,0.48681386,2075.5,2075.3,0.0011]
[1772755707939,0.48681386,2075.5,2075.0,0.0011]
[1772755707940,0.48581386,2075.4,2075.0,0.0011]
[1772755709533,1.20464511,2075.3,2075.0,0.0011]
[1772755709728,0.45685671,2075.2,2075.0,0.0011]
[1772755713658,1.661562,2075.2,2075.0,0.0011]
[1772755713861,1.66157125,2075.2,2075.0,0.0011]
[1772755714059,0.47008649,2075.1,2074.8,0.0011]
[1772755716287,0.47008649,2075.0,2074.8,0.0011]
[1772755717847,0.47108649,2075.0,2074.8,0.0011]
[1772755718481,1.20487734,2074.9,2074.6,0.0011]
[1772755718787,0.47008649,2074.8,2074.6,0.0011]
[1772755723142,1.67504116,2074.8,2074.6,0.0011]
[1772755726766,0.47008649,2074.8,2074.6,0.0011]
[1772755726970,1.67590841,2075.0,2074.6,0.49041682]
[1772755727282,0.47008649,2074.9,2074.6,0.49041682]
[1772755728490,0.47008649,2074.9,2074.6,0.0011]
[1772755729772,1.67496983,2074.9,2074.6,0.0011]
[1772755730080,1.67496983,2074.9,2074.8,0.0011]
[1772755730578,0.47008649,2074.9,2074.8,0.0011]
[1772755732554,0.001,2075.0,2074.8,0.0011]
[1772755734866,0.001,2075.0,2074.8,0.49041682]
[1772755740587,0.001,2075.0,2074.8,1.69534779]
[1772755740999,0.001,2075.0,2074.8,0.49041682]
[1772755741296,0.001,2075.0,2074.8,1.69534445]
[1772755741549,6.37812784,2075.5,2074.9,0.46513748]
[1772755741550,1.69258344,2075.5,2074.9,0.46513748]
[1772755741809,0.001,2075.5,2074.9,0.46513748]
[1772755742299,0.001,2075.5,2075.1,0.46513748]
[1772755742880,0.48701009,2075.4,2075.1,0.46513748]
[1772755744001,0.001,2075.5,2075.1,0.46513748]
[1772755744177,1.69258307,2075.5,2075.1,0.46513748]
[1772755744499,0.48801009,2075.5,2075.1,1.66989736]
[1772755745076,0.001,2075.5,2075.2,0.46513748]
[1772755746287,0.001,2075.5,2075.2,1.20464617]
[1772755746614,0.001,2075.5,2075.3,0.46513748]
[1772755748417,0.001,2075.5,2075.3,1.6697815]
[1772755748997,0.001,2075.5,2075.3,0.46513748]
[1772755751397,0.001,2075.5,2075.3,1.66978179]
[1772755752428,0.001,2075.5,2075.3,0.46513748]
[1772755753632,0.001,2075.5,2075.3,1.66978033]
[1772755754032,0.001,2075.5,2075.3,0.46513748]
[1772755756337,0.001,2075.5,2075.3,1.66977754]
[1772755756931,0.001,2075.5,2075.3,0.46513748]
[1772755758238,0.001,2075.5,2075.3,1.66977852]
[1772755759636,0.001,2075.5,2075.3,1.66978243]
[1772755759933,0.001,2075.5,2075.3,1.20464495]
[1772755760635,0.48801009,2075.5,2075.2,1.20470316]
[1772755762140,0.48801009,2075.5,2075.1,0.0011]
[1772755762755,1.2055567,2075.5,2075.1,0.0011]
[1772755762922,0.48701009,2075.4,2075.1,0.0011]
[1772755764646,0.48701009,2075.4,2075.1,0.46623748]
[1772755764811,0.48801009,2075.5,2075.2,1.66984064]
[1772755765330,0.48801009,2075.5,2075.2,0.46513748]
[1772755766038,0.48801009,2075.5,2075.2,0.46623748]
[1772755766240,0.48801009,2075.5,2075.2,0.0011]
[1772755766834,0.001,2075.3,2075.2,0.0011]
[1772755769814,0.001,2075.3,2075.2,0.45367111]
[1772755770120,0.46910638,2075.6,2075.2,0.45367111]
[1772755770325,0.4207456,2075.5,2075.2,0.45367111]
[1772755770534,0.46910638,2075.6,2075.2,0.45367111]
[1772755770730,0.42073646,2075.5,2075.2,0.45367111]
[1772755770926,0.46910638,2075.6,2075.2,0.45367111]
[1772755771126,0.8898399,2075.5,2075.2,1.65836037]
[1772755771326,0.42073352,2075.4,2075.2,1.65836037]
[1772755771574,0.46910638,2075.5,2075.2,1.65836037]
[1772755771746,0.42111329,2075.4,2075.2,1.65836037]
[1772755772041,0.46910638,2075.5,2075.2,1.65836037]
[1772755772217,0.42111468,2075.4,2075.2,1.65836037]
[1772755772544,0.46910638,2075.5,2075.2,1.65836037]
[1772755772740,0.42113839,2075.4,2075.2,1.65836037]
[1772755772944,0.46910638,2075.5,2075.2,1.65836037]
[1772755773139,0.42113813,2075.4,2075.2,1.65836037]
[1772755773344,0.46910638,2075.5,2075.2,1.65836037]
[1772755773543,0.42118791,2075.4,2075.2,1.65836037]
[1772755773741,0.46910638,2075.5,2075.2,1.65836037]
[1772755774050,0.42112982,2075.4,2075.2,1.65836037]
[1772755774249,0.46910638,2075.5,2075.2,1.65836037]
[1772755775749,1.67364033,2075.5,2075.2,0.45367111]
[1772755775919,0.46910638,2075.4,2075.1,0.0011]
[1772755778046,0.46910638,2075.2,2075.1,0.0011]
[1772755778248,0.46910638,2075.2,2074.9,0.0011]
[1772755780119,1.67382818,2075.2,2074.9,0.0011]
[1772755780324,0.46910638,2075.1,2074.9,0.0011]
[1772755784643,0.001,2075.3,2074.9,0.45367111]
[1772755785449,0.001,2075.3,2074.9,0.48316374]
[1772755786754,0.001,2075.3,2075.0,1.65739038]
[1772755787453,0.001,2075.3,2075.1,0.45257111]
[1772755789252,0.46910638,2075.5,2075.2,1.65727427]
[1772755792760,1.67356096,2075.7,2075.3,0.45257111]
[1772755793861,1.67356096,2075.7,2075.4,0.45257111]
[1772755794161,0.46910638,2075.7,2075.4,0.45257111]
[1772755796755,0.46910638,2075.8,2075.4,1.65711715]
[1772755799166,1.67346483,2075.8,2075.4,1.65711715]
[1772755799466,0.46910638,2075.8,2075.4,1.65711715]
[1772755799779,0.46910638,2075.8,2075.1,4.82009662]
[1772755799780,0.48191282,2075.7,2075.1,0.0011]
[1772755800068,0.48191282,2075.7,2074.9,3.2e-07]
[1772755800257,0.48191282,2075.7,2074.6,0.0011]
[1772755801266,0.48191282,2075.5,2074.6,0.0011]
[1772755801469,0.48191282,2075.3,2074.6,0.0011]
[1772755803576,0.48191282,2075.1,2074.6,0.0011]
[1772755804475,0.48191282,2075.0,2074.6,0.0011]
[1772755805673,0.48191282,2074.8,2074.5,0.0011]
[1772755807851,0.48191282,2074.6,2074.5,0.0011]
[1772755808847,4.81946517,2075.0,2074.5,0.4881057]
[1772755809089,0.48191282,2074.9,2074.5,0.4881057]
[1772755809253,0.48191282,2074.9,2074.5,0.0011]
[1772755810343,0.48191282,2074.7,2074.5,0.0011]
[1772755811470,0.48191282,2074.9,2074.5,0.4881057]
[1772755812046,0.48191282,2074.9,2074.5,0.0011]
[1772755812456,1.68684823,2074.8,2074.5,0.0011]
[1772755812941,1.20493541,2074.8,2074.5,0.4881057]
[1772755813374,1.68684823,2074.8,2074.5,0.4881057]
[1772755814157,0.48291282,2075.1,2074.5,0.4881057]
[1772755814376,0.001,2075.1,2074.5,0.4881057]
[1772755814578,0.001,2075.1,2074.7,0.4870057]
[1772755814779,0.48291282,2075.1,2074.5,0.4881057]
[1772755815281,0.48291282,2075.1,2074.6,0.4870057]
[1772755815450,0.48291282,2075.1,2074.5,0.4881057]
[1772755816773,0.48191282,2075.0,2074.5,0.4881057]
[1772755817360,0.48191282,2075.0,2074.6,0.4870057]
[1772755817683,0.48191282,2075.0,2074.7,0.0011]
[1772755818174,0.48191282,2075.0,2074.7,0.4881057]
[1772755819171,1.68678625,2075.0,2074.7,0.4881057]
[1772755819955,0.48191282,2074.9,2074.7,0.0011]
[1772755820778,0.48191282,2074.9,2074.5,0.0011]
[1772755823684,0.48191282,2074.7,2074.5,0.0011]
[1772755827286,1.20505157,2074.6,2074.4,0.0011]
[1772755827598,1.70494395,2074.8,2074.4,0.0011]
[1772755827765,1.70494395,2074.8,2074.4,1.20626424]
[1772755827970,1.70493906,2074.8,2074.4,0.0011]
[1772755828499,1.70485939,2075.0,2074.4,1.20626679]
[1772755828801,0.5,2074.9,2074.4,1.20626679]
[1772755829474,1.70490856,2074.9,2074.6,0.0011]
[1772755829898,1.70590856,2074.9,2074.6,0.0011]
[1772755831166,1.20590856,2074.9,2074.6,0.0011]
[1772755832086,0.501,2074.9,2074.6,0.0011]
[1772755832988,0.001,2074.9,2074.6,0.0011]
[1772755833399,0.001,2075.1,2074.6,0.0011]
[1772755834205,1.20576121,2075.1,2074.6,0.0011]
[1772755834404,1.70576121,2075.1,2074.6,0.0011]
[1772755838593,0.501,2075.1,2074.6,0.0011]
[1772755838798,0.001,2075.1,2074.6,0.0011]
[1772755841801,0.001,2075.1,2074.8,0.0011]
[1772755842004,0.001,2074.9,2074.8,0.0011]
[1772755844902,0.501,2075.1,2074.8,0.0011]
[1772755844903,0.001,2075.1,2074.8,0.0011]
[1772755848297,0.5,2075.4,2074.8,0.0011]
[1772755849205,1.70458838,2075.4,2074.8,0.0011]
[1772755849514,0.5,2075.4,2074.8,0.0011]
[1772755850287,1.20453525,2075.5,2074.8,0.0011]
[1772755850611,1.70453525,2075.5,2074.8,0.0011]
[1772755853308,0.5,2075.4,2074.8,0.0011]
[1772755854509,0.5,2075.4,2075.0,0.0011]
[1772755854693,0.001,2075.3,2075.0,0.0011]
[1772755854895,0.5,2075.7,2075.0,0.0011]
[1772755857122,0.5,2075.5,2075.0,0.0011]
[1772755861221,0.47898552,2075.8,2075.0,0.49377734]
[1772755861400,0.47898552,2076.4,2075.0,0.49377734]
[1772755863424,0.47898552,2076.2,2075.2,0.49267734]
[1772755865400,0.47898552,2076.1,2075.4,0.49267734]
[1772755868130,0.47898552,2076.1,2075.5,1.20452902]
[1772755868332,0.47898552,2076.1,2075.6,0.49267734]
[1772755870133,0.47998552,2076.2,2075.6,0.49267734]
[1772755870302,0.001,2076.2,2075.8,0.49267734]
[1772755870498,0.47898552,2076.8,2075.8,0.49267734]
[1772755870705,0.47898552,2076.8,2075.9,0.49267734]
[1772755872428,0.47898552,2076.7,2076.1,0.49267734]
[1772755874636,0.47898552,2076.7,2076.3,0.49267734]
[1772755876520,0.47898552,2076.7,2076.4,1.20400693]
[1772755876716,0.47898552,2076.6,2075.7,0.49267734]
[1772755876921,0.47898552,2076.6,2075.8,0.49267734]
[1772755878115,0.47898552,2076.3,2075.8,0.49267734]
[1772755879438,0.47898552,2076.3,2076.0,0.49267734]
[1772755880946,0.001,2076.4,2076.0,0.49267734]
[1772755881617,0.47998552,2076.4,2076.0,1.69687219]
[1772755881933,0.47998552,2076.4,2076.1,0.49267734]
[1772755882330,0.001,2076.4,2076.1,0.49267734]
[1772755882530,0.47898552,2076.7,2076.1,0.49267734]
[1772755883242,0.47898552,2077.0,2076.1,0.49267734]
[1772755884544,0.47898552,2077.0,2076.3,0.49267734]
[1772755884545,0.47898552,2076.8,2076.3,0.49267734]
[1772755887138,1.68281852,2076.7,2076.3,1.69673125]
[1772755888150,0.47898552,2076.6,2076.2,1.20409452]
[1772755888352,0.47898552,2076.6,2076.2,1.69677186]
[1772755890127,0.47898552,2076.6,2076.4,0.0011]
[1772755890554,0.001,2076.5,2076.4,0.0011]
[1772755892452,0.49839586,2076.5,2076.4,0.0011]
[1772755893252,0.001,2076.5,2076.4,0.0011]
[1772755894651,1.20379847,2076.8,2076.4,0.0011]
[1772755894828,1.20379847,2076.8,2076.4,0.49927249]
[1772755894829,1.70119433,2076.8,2076.4,0.49927249]
[1772755895555,1.20379847,2076.8,2076.4,0.49927249]
[1772755895730,0.49739586,2076.7,2076.4,0.49927249]
[1772755896454,0.49739586,2076.7,2076.4,1.70325881]
[1772755897654,0.49739586,2077.1,2076.4,1.70325881]
[1772755897859,0.49739586,2077.0,2076.5,0.49817249]
[1772755898352,0.49739586,2077.0,2076.6,1.20389097]
[1772755898534,0.49739586,2076.9,2076.6,1.20389097]
[1772755899138,0.49739586,2077.4,2076.7,0.49817249]
[1772755899340,0.49739586,2077.6,2076.7,0.49817249]
[1772755900133,1.20322996,2077.8,2076.7,0.49817249]
[1772755900357,1.7005968,2077.8,2076.8,1.20377503]
[1772755900660,1.7005976,2077.8,2077.0,0.49817249]
[1772755900865,0.49739586,2077.7,2077.0,0.49817249]
[1772755903049,0.49739586,2077.7,2077.2,0.49817249]
[1772755903243,0.49739586,2078.0,2077.2,0.49817249]
[1772755904437,0.001,2077.5,2077.2,0.49817249]
[1772755904664,0.49739586,2077.9,2077.2,0.49817249]
[1772755904963,0.49739586,2077.8,2076.7,0.49817249]
[1772755905136,0.49739586,2077.7,2076.8,0.49817249]
[1772755905738,0.49739586,2078.3,2076.8,0.49817249]
[1772755906736,0.49739586,2078.3,2077.0,0.49817249]
[1772755906959,0.49739586,2078.1,2077.2,0.49817249]
[1772755908042,0.49739586,2078.1,2077.3,0.51899947]
[1772755908944,0.49739586,2077.9,2077.4,1.20342736]
[1772755909169,0.49739586,2077.9,2077.4,1.70159985]
[1772755912074,0.49739586,2077.9,2077.5,0.49817249]
[1772755912470,0.44821723,2077.9,2077.5,0.49817249]
[1772755912677,0.3990386,2077.9,2077.5,0.49817249]
[1772755913063,0.49739586,2077.9,2077.5,1.20332764]
[1772755913262,0.49739586,2077.9,2077.3,1.72244773]
[1772755914455,0.49739586,2078.1,2077.4,0.49817249]
[1772755914666,0.49739586,2078.3,2077.4,0.49817249]
[1772755915178,0.49739586,2078.2,2077.6,0.49817249]
[1772755917277,0.49739586,2078.0,2077.7,1.20325359]
[1772755917480,0.49739586,2078.0,2077.7,1.70142608]
[1772755917854,0.002,2078.1,2077.7,1.70142608]
[1772755918078,0.002,2078.1,2077.8,0.49817249]
[1772755919150,0.49739586,2078.5,2077.8,0.49817249]
[1772755919481,0.49739586,2078.5,2078.0,0.49817249]
[1772755919659,0.49739586,2078.6,2078.0,0.49817249]
[1772755919856,0.49739586,2078.6,2077.9,1.20313778]
[1772755920263,0.49739586,2078.6,2077.8,0.48017275]
[1772755920467,0.49739586,2078.6,2077.8,1.68336249]
[1772755920666,0.49739586,2078.6,2077.8,1.6833625]
[1772755921059,0.49739586,2078.6,2077.7,3.0604019]
[1772755921277,1.20279047,2078.5,2077.7,1.85717275]
[1772755921477,0.45886765,2078.4,2077.7,1.85717275]
[1772755921726,0.45886765,2078.4,2077.3,1.68365801]
[1772755921884,0.45886765,2078.4,2077.3,1.20348526]
[1772755922090,0.45886765,2078.4,2077.3,1.70448499]
[1772755922266,0.45886765,2078.4,2077.4,0.48017275]
[1772755923288,1.20290622,2078.3,2077.5,1.20336943]
[1772755923492,0.45886765,2078.2,2077.6,0.48017275]
[1772755925074,4.81156439,2078.4,2077.6,0.48017275]
[1772755925075,0.45886765,2078.4,2077.6,0.48017275]
[1772755925590,0.45886765,2078.2,2077.7,1.68342634]
[1772755927690,0.45886765,2078.1,2077.7,1.20325359]
[1772755928174,0.45886765,2078.1,2077.6,1.68343775]
[1772755928370,0.45886765,2078.1,2077.6,1.203265]
[1772755928574,0.45886765,2078.1,2077.6,1.20329943]
[1772755928777,0.45886765,2078.1,2077.3,1.22426854]
[1772755928976,0.45886765,2078.1,2077.3,1.70444129]
[1772755929382,0.45886765,2078.1,2077.4,0.48017275]
[1772755929601,0.45886765,2077.9,2077.4,1.68356975]
[1772755930079,0.45886765,2077.9,2077.5,0.48017275]
[1772755930964,0.45886765,2077.9,2077.5,0.48117275]
[1772755931166,1.66193239,2078.1,2077.5,0.48117275]
[1772755931572,0.45886765,2078.0,2077.5,0.48117275]
[1772755931799,1.66195146,2078.0,2077.6,1.20331151]
[1772755931993,0.45886765,2078.0,2077.6,1.68348426]
[1772755932669,0.45886765,2078.1,2077.7,0.48017275]
[1772755933395,0.46086765,2078.2,2077.7,0.48017275]
[1772755933607,0.42620691,2078.1,2077.7,0.48017275]
[1772755933768,0.46086765,2078.2,2077.7,0.48017275]
[1772755933972,0.42626412,2078.1,2077.8,1.68336843]
[1772755934296,0.46086765,2078.2,2077.8,1.68336843]
[1772755934595,0.42628936,2078.1,2077.9,0.48017275]
[1772755934766,1.66384028,2078.2,2077.9,0.48017275]
[1772755934967,0.42631039,2078.1,2077.9,0.48017275]
[1772755935172,1.66384028,2078.2,2077.9,0.48017275]
[1772755935382,0.42657675,2078.1,2077.9,0.48017275]
[1772755935592,0.46086765,2078.2,2077.9,0.48017275]
[1772755935898,0.42664411,2078.1,2077.9,0.48017275]
[1772755936201,0.46086765,2078.2,2077.9,1.68330958]
[1772755936406,0.42670468,2078.1,2077.9,1.68330958]
[1772755936570,0.46086765,2078.2,2077.9,1.68330958]
[1772755936767,0.42670636,2078.1,2077.9,0.48017275]
[1772755937067,0.46086765,2078.2,2077.9,0.48017275]
[1772755937272,0.42672509,2078.1,2077.9,1.68326282]
[1772755937482,0.46086765,2078.2,2077.9,1.68326282]
[1772755937679,0.42673882,2078.1,2077.9,1.20309007]
[1772755937879,0.002,2078.2,2078.0,0.48017275]
[1772755938294,0.002,2078.2,2077.8,0.48017275]
[1772755939614,0.23688948,2078.3,2077.5,0.001]
[1772755939905,0.45886765,2078.5,2077.9,0.48017275]
[1772755940106,0.88035742,2078.4,2077.9,0.48017275]
[1772755940406,0.45886765,2078.4,2078.0,1.68325263]
[1772755941076,0.45886765,2078.4,2078.1,0.48017275]
[1772755941482,1.66160412,2078.6,2078.1,0.48017275]
[1772755941683,0.42139463,2078.5,2078.1,0.48017275]
[1772755941985,1.66160412,2078.6,2078.1,0.48017275]
[1772755941986,0.45886765,2078.6,2078.1,0.48017275]
[1772755942417,0.45886765,2078.5,2078.1,1.20297814]
[1772755942908,0.45886765,2078.5,2078.1,1.68315089]
[1772755943279,0.45886765,2078.5,2077.9,0.50099372]
[1772755943487,0.45886765,2078.5,2077.9,0.02082097]
[1772755944239,0.45886765,2078.3,2077.9,0.02082097]
[1772755944415,0.45886765,2078.2,2077.9,1.22395614]
[1772755944709,0.45886765,2078.2,2077.9,0.02082097]
[1772755945229,0.45886765,2078.2,2078.1,0.001]
[1772755948197,0.45886765,2078.2,2077.5,4.81443355]
[1772755948198,0.45886765,2078.1,2077.6,1.68346051]
[1772755948397,1.20307988,2078.0,2077.6,0.48017275]
[1772755948615,1.66194753,2078.0,2077.6,1.68348186]
[1772755948939,0.45886765,2078.0,2077.6,1.68348186]
[1772755949098,0.45886765,2078.0,2077.7,0.48017275]
[1772755949730,0.48539365,2078.2,2077.7,0.48017275]
[1772755950599,0.48539365,2078.3,2077.9,0.45432187]
[1772755952949,0.48539365,2078.5,2078.0,1.65740175]
[1772755953246,0.90910282,2078.4,2078.0,1.65740175]
[1772755953427,0.42370917,2078.3,2078.0,1.65740175]
[1772755953629,0.48539365,2078.4,2078.0,1.65740175]
[1772755953943,1.2027326,2078.6,2078.0,1.65740175]
[1772755953944,0.90913127,2078.3,2078.0,1.65740175]
[1772755954104,0.48539365,2078.3,2078.0,0.45432187]
[1772755954304,0.48539365,2078.3,2077.9,1.20309062]
[1772755955306,0.48539365,2078.3,2077.8,5.26697589]
[1772755955307,0.48539365,2078.2,2077.8,0.45432187]
[1772755955509,0.48539365,2078.2,2077.6,4.8131255]
[1772755955510,0.48539365,2078.2,2077.6,1.65760254]
[1772755955917,0.48539365,2078.0,2077.5,1.20436199]
[1772755956918,0.48539365,2078.0,2077.5,0.001]
[1772755957414,1.68853143,2077.9,2077.5,1.65868785]
[1772755957717,0.48539365,2077.8,2077.5,0.001]
[1772755958224,0.48539365,2078.5,2077.5,0.45532187]
[1772755958419,0.48539365,2078.3,2077.5,0.45532187]
[1772755958623,0.48539365,2078.1,2077.5,0.45532187]
[1772755958823,0.42356163,2078.2,2077.5,0.45532187]
[1772755958824,0.90895528,2078.0,2077.5,0.45532187]
[1772755959146,0.48539365,2078.0,2077.5,0.45532187]
[1772755959344,1.68853143,2077.9,2077.8,0.001]
[1772755963562,0.48539365,2077.9,2077.8,0.001]
[1772755963734,1.20312599,2078.0,2077.8,0.001]
[1772755963935,0.48739365,2078.1,2077.8,0.001]
[1772755964147,0.48739365,2078.1,2077.8,0.45532187]
[1772755964628,0.48739365,2078.1,2077.8,0.001]
[1772755965133,1.69042043,2078.1,2077.8,0.001]
[1772755965634,0.002,2078.1,2077.8,0.45532187]
[1772755965829,0.002,2078.1,2077.8,1.65850838]
[1772755966036,0.002,2078.1,2077.9,0.45432187]
[1772755969651,0.002,2078.1,2077.9,1.65741676]
[1772755969995,0.002,2078.1,2077.9,0.45432187]
[1772755970267,0.002,2078.1,2077.8,0.45532187]
[1772755970445,0.002,2078.1,2077.8,1.65850846]
[1772755970967,0.002,2078.1,2077.9,0.45432187]
[1772755971638,0.002,2078.1,2077.8,0.45532187]
[1772755972865,0.002,2078.1,2078.0,0.001]
[1772755974966,0.48739365,2078.1,2078.0,0.001]
[1772755975271,1.69041564,2078.1,2078.0,0.001]
[1772755976072,0.48739365,2078.1,2078.0,0.001]
[1772755976249,0.002,2078.1,2078.0,0.001]
[1772755976453,0.002,2078.1,2078.0,0.45532187]
[1772755977071,0.00199988,2078.1,2078.0,1.65840175]
[1772755977365,1.68817863,2078.6,2078.1,0.45432187]
[1772755979685,0.48539365,2078.5,2078.0,1.65834524]
[1772755980055,0.48539365,2078.5,2078.0,0.45532187]
[1772755980382,0.48539365,2078.5,2078.0,0.001]
[1772755980959,0.48539365,2078.5,2078.0,0.45681788]
[1772755981281,0.48539365,2078.5,2078.0,1.65989674]
[1772755981582,0.48539365,2078.5,2078.1,0.45581788]
[1772755981981,1.20280547,2078.5,2078.2,0.45581788]
[1772755982683,1.6892965,2078.6,2078.2,0.45581788]
[1772755983074,0.48653856,2078.6,2078.2,0.45581788]
[1772755983380,3.20525595,2078.7,2078.2,0.45581788]
[1772755983990,1.68925595,2078.7,2078.2,0.45581788]
[1772755984685,1.68925595,2078.7,2078.3,1.20290622]
[1772755984990,1.68925595,2078.7,2078.3,1.6587241]
[1772755985169,1.68925595,2078.7,2078.3,0.45581788]
[1772755986262,0.48653856,2078.6,2078.3,0.45581788]
[1772755986765,1.6893032,2078.6,2078.3,0.45581788]
[1772755987495,0.48653856,2078.5,2078.1,1.6597928]
[1772755987676,0.48653856,2078.5,2078.1,0.45681788]
[1772755987885,0.48653856,2078.5,2078.1,0.001]
[1772755988777,1.20284834,2078.4,2078.1,0.001]
[1772755988985,0.48653856,2078.3,2078.1,0.001]
[1772755990788,1.20284834,2078.4,2078.1,0.45681788]
[1772755991690,1.6893869,2078.4,2078.1,0.45681788]
[1772755991888,0.48653856,2078.3,2078.0,0.001]
[1772755993459,1.68950266,2078.2,2078.0,0.001]
[1772755994167,1.2029641,2078.2,2078.0,0.001]
[1772755994472,1.68950266,2078.2,2078.0,0.001]
[1772755996265,0.48653856,2078.2,2078.0,0.001]
[1772755996827,1.68950314,2078.2,2078.0,0.001]
[1772755997574,0.48653856,2078.2,2078.0,0.001]
[1772755998974,1.6895092,2078.2,2078.0,0.001]
[1772755999286,0.48653856,2078.2,2078.0,0.001]
[1772755999498,1.68941032,2078.4,2078.0,0.45681788]
[1772755999976,0.48653856,2078.3,2078.2,0.001]
[1772756000295,0.48853856,2078.3,2078.2,0.001]
[1772756001901,0.002,2078.3,2078.2,0.45681788]
[1772756003192,0.002,2078.3,2078.2,0.001]
[1772756003388,6.33947245,2078.8,2078.3,0.45581788]
[1772756003389,2.01553856,2078.8,2078.3,0.45581788]
[1772756004085,2.01553856,2078.8,2078.4,1.65866622]
[1772756004490,3.21816817,2078.8,2078.4,1.65866622]
[1772756004784,2.01553856,2078.8,2078.4,1.65866622]
[1772756005596,2.01553856,2078.8,2078.4,0.45581788]
[1772756005989,1.529,2078.8,2078.4,0.45581788]
[1772756006295,2.73161765,2078.8,2078.5,0.45581788]
[1772756006801,0.48653856,2079.2,2078.5,0.45581788]
[1772756006997,0.48653856,2079.1,2078.5,0.45581788]
[1772756008179,1.2025012,2079.0,2078.5,0.45581788]
[1772756008505,0.48653856,2079.0,2078.6,0.45581788]
[1772756009195,1.68903707,2079.1,2078.6,0.45581788]
[1772756009397,0.48653856,2079.0,2078.6,0.45581788]
[1772756010285,1.69201797,2078.9,2078.6,0.45581788]
[1772756010603,0.48945893,2078.9,2078.6,0.45581788]
[1772756010899,0.48945893,2078.9,2078.6,1.6585047]
[1772756011104,0.48945893,2078.9,2078.6,0.45581788]
[1772756011898,0.48945893,2078.9,2078.7,1.20267474]
[1772756012081,0.48945893,2078.9,2078.6,1.65853892]
[1772756013003,0.48945893,2079.1,2078.7,0.49502702]
[1772756013302,1.20242864,2079.2,2078.7,0.49502702]
[1772756013303,1.69188757,2079.2,2078.7,0.49502702]
[1772756013498,0.48945893,2079.2,2078.7,0.49502702]
[1772756013703,0.002,2078.9,2078.7,0.49502702]
[1772756014785,0.48945893,2079.2,2078.7,0.49502702]
[1772756015103,1.69187519,2079.2,2078.8,0.49502702]
[1772756015302,0.48945893,2079.1,2078.7,1.20263299]
[1772756015473,0.48945893,2079.1,2078.7,1.69766001]
[1772756015678,0.48945893,2079.1,2078.8,0.49502702]
[1772756017010,0.48945893,2079.1,2078.8,1.69758808]
[1772756017507,1.69182787,2079.3,2078.9,0.49502702]
[1772756017682,0.48945893,2079.2,2078.9,0.49502702]
[1772756018084,0.48945893,2079.4,2078.9,0.49502702]
[1772756018285,0.48945893,2079.9,2078.9,0.49502702]
[1772756018995,1.69148773,2079.9,2079.0,1.2025012]
[1772756019193,0.48945893,2079.8,2079.1,0.49502702]
[1772756021924,0.48945893,2079.8,2079.3,0.49502702]
[1772756022299,0.48945893,2079.9,2079.3,0.49502702]
[1772756023840,0.48945893,2079.9,2079.2,1.20238553]
[1772756024121,0.48945893,2079.7,2079.0,0.49502702]
[1772756024637,0.48945893,2079.7,2078.4,0.065536]
[1772756024927,0.48945893,2079.5,2078.6,0.49502702]
[1772756025893,0.48945893,2079.5,2078.5,1.20279047]
[1772756026094,0.48945893,2079.3,2078.5,0.49502702]
[1772756026295,1.69153851,2079.8,2078.7,0.49502702]
[1772756026706,1.69153851,2079.8,2078.9,0.49502702]
[1772756027115,0.49145893,2079.7,2078.9,0.49502702]
[1772756029998,1.69361123,2079.7,2079.1,0.49502702]
[1772756030197,0.49145893,2079.7,2079.1,0.49502702]
[1772756032028,0.49145893,2079.7,2079.2,1.69741255]
[1772756032695,1.6935596,2079.7,2079.2,1.69741255]
[1772756033031,0.49145893,2079.7,2079.2,1.69741255]
[1772756033704,1.69357524,2079.7,2079.2,1.69741255]
[1772756034217,0.48945893,2079.6,2079.2,1.69741255]
[1772756038900,0.48945893,2079.6,2079.3,0.49502702]
[1772756040335,0.48945893,2079.6,2079.3,1.69730862]
[1772756040826,0.002,2079.7,2079.3,1.69730862]
[1772756041031,1.70408706,2079.7,2079.3,1.69730862]
[1772756041231,0.49998796,2079.6,2079.3,1.69734986]
[1772756041806,0.49998796,2079.6,2079.3,0.49502702]
[1772756042133,0.49998796,2079.6,2079.3,1.69733563]
[1772756042501,1.20410092,2079.7,2079.3,1.69733563]
[1772756042717,0.50198796,2079.7,2079.4,0.45058672]
[1772756042936,0.002,2079.7,2079.4,0.45058672]
[1772756043457,1.70189202,2080.1,2079.5,0.45058672]
[1772756043605,0.49998796,2080.0,2079.3,1.20230861]
[1772756043804,0.49998796,2080.0,2079.3,1.65289533]
[1772756044246,0.49998796,2080.0,2079.4,0.45058672]
[1772756047306,1.20198086,2079.9,2079.5,0.45058672]
[1772756047512,0.49998796,2080.2,2079.5,0.45058672]
[1772756050423,0.49998796,2080.1,2079.7,0.45058672]
[1772756052039,0.49998796,2080.1,2079.3,1.65290512]
[1772756052240,0.49998796,2080.1,2079.4,0.45058672]
[1772756053839,0.49998796,2079.9,2079.4,0.45058672]
[1772756054443,0.49998796,2079.9,2079.5,0.001]
[1772756054651,0.50198796,2079.9,2079.5,0.001]
[1772756056119,0.49998796,2079.7,2079.5,0.001]
[1772756058331,1.2040239,2079.9,2079.5,0.001]
[1772756058523,1.2040239,2079.9,2079.5,0.45158672]
[1772756058524,1.70401186,2079.9,2079.5,0.45158672]
[1772756058721,0.50198796,2079.9,2079.5,0.45158672]
[1772756058922,1.70397105,2079.9,2079.5,0.45158672]
[1772756061132,0.002,2079.9,2079.6,0.45058672]
[1772756062150,1.70181001,2080.2,2079.6,0.45058672]
[1772756063125,1.70181001,2080.2,2079.7,1.20209645]
[1772756063326,1.70181001,2080.2,2079.8,0.45058672]
[1772756064720,1.20182205,2080.2,2079.8,0.45058672]
[1772756064926,0.49998796,2080.1,2079.6,0.45058672]
[1772756065346,1.20192307,2080.0,2079.7,0.45058672]
[1772756066825,1.70191103,2080.0,2079.7,0.45058672]
[1772756067651,0.49998796,2079.9,2079.5,0.45158672]
[1772756067854,0.49998796,2080.2,2079.5,0.45158672]
[1772756068559,0.49998796,2080.2,2079.8,0.45058672]
[1772756068742,0.002,2080.0,2079.8,0.45058672]
[1772756071151,1.20392307,2080.0,2079.8,0.45058672]
[1772756071940,0.48486895,2079.9,2079.7,0.001]